lending/lending_fUSD_20251015
["ID","MTS","AMOUNT","RATE_DAILY","PERIOD"]
[391340691,1760547067868,-2330.06,0.00016086,2]
[391340692,1760547067877,-193.22,0.00016087,2]
[391340693,1760547067887,-500.0,0.000161,2]
[391340694,1760547067897,-1065.03999484,0.000161,2]
[391340695,1760547067906,-1991.92250662,0.000161,2]
[391340696,1760547067916,-9999.99,0.00016116,2]
[391340697,1760547067926,-7603.24262769,0.00016142,2]
[391340698,1760547067938,-500.0,0.0001615,2]
[391340699,1760547067948,-3722.74878836,0.00016165,2]
[391340700,1760547067958,-160.0,0.00016199,2]
[391340701,1760547067969,-334.5472959,0.00016199,2]
[391340702,1760547067978,-5000.00084257,0.000162,5]
[391340703,1760547067988,-475.0,0.00016204,2]
[391340704,1760547067998,-370.0,0.00016211,2]
[391340705,1760547068007,-161.7355971,0.00016271,2]
[391340706,1760547068017,-1065.03999484,0.000163,2]
[391340707,1760547068027,-1991.92250662,0.000163,2]
[391340708,1760547068037,-3722.74878836,0.00016338,2]
[391340709,1760547068047,-200.0,0.0001634,2]
[391340710,1760547068057,-167.29,0.00016353,2]
[391340711,1760547068067,-2330.06,0.0001636,2]
[391340712,1760547068076,-7603.24262769,0.00016369,2]
[391340713,1760547068087,-500.0,0.00016385,2]
[391340714,1760547068097,-537.71569029,0.00016385,2]
[391340715,1760547068107,-500.0,0.00016385,2]
[391340716,1760547068117,-218.40957322,0.00016398,2]
[391340717,1760547068126,-500.0,0.00016424,2]
[391340718,1760547068137,-500.0,0.00016427,2]
[391340719,1760547068147,-500.0,0.00016427,2]
[391340720,1760547068157,-500.0,0.00016427,2]
[391340721,1760547068168,-500.0,0.00016427,2]
[391340722,1760547068178,-500.0,0.00016427,2]
[391340723,1760547068188,-500.0,0.00016427,2]
[391340724,1760547068200,-500.0,0.00016427,2]
[391340725,1760547068210,-500.0,0.00016427,2]
[391340726,1760547068220,-500.0,0.00016427,2]
[391340727,1760547068231,-500.0,0.00016427,2]
[391340728,1760547068240,-500.0,0.00016427,2]
[391340729,1760547068251,-500.0,0.00016427,2]
[391340730,1760547068261,-500.0,0.00016427,2]
[391340731,1760547068271,-500.0,0.00016427,2]
[391340732,1760547068282,-500.0,0.00016427,2]
[391340733,1760547068292,-154.50207091,0.00016427,2]
[391340734,1760547068303,-500.0,0.00016427,2]
[391340735,1760547068313,-500.0,0.00016427,2]
[391340736,1760547068323,-500.0,0.00016427,2]
[391340737,1760547068334,-500.11519838,0.00016427,2]
[391340738,1760547068344,-500.0,0.00016427,2]
[391340739,1760547068354,-500.0,0.00016427,2]
[391340740,1760547068364,-11210.87187879,0.00016429,7]
[391340741,1760547068374,-103427.7101653,0.00016435,2]
[391340742,1760547068385,-61686.91955573,0.00016435,2]
[391340743,1760547068395,-500.0,0.00016438,2]
[391340744,1760547068406,-500.0,0.00016438,2]
[391340745,1760547068416,-511.78230745,0.00016438,2]
[391340746,1760547068426,-500.0,0.00016438,2]
[391340747,1760547068436,-500.0,0.00016438,2]
[391340748,1760547068447,-500.0,0.00016438,2]
[391340749,1760547068457,-500.0,0.00016438,2]
[391340750,1760547068467,-500.0,0.00016438,2]
[391340751,1760547068476,-500.0,0.00016438,2]
[391340752,1760547068486,-500.0,0.00016438,2]
[391340753,1760547068497,-500.0,0.00016438,2]
[391340754,1760547068508,-162.1988424,0.00016438,2]
[391340755,1760547068518,-500.0,0.00016438,2]
[391340756,1760547068527,-500.0,0.00016438,2]
[391340757,1760547068536,-500.0,0.00016438,2]
[391340758,1760547068547,-5919.46,0.00016438,2]
[391340759,1760547068557,-2947.39,0.00016438,30]
[391340760,1760547068567,-89659.51,0.00016438,2]
[391340761,1760547068577,-223.54,0.00016438,2]
[391340762,1760547068587,-301.107394,0.00016438,2]
[391340763,1760547068597,-301.107394,0.00016438,2]
[391340764,1760547068607,-301.107394,0.00016438,2]
[391340765,1760547068617,-301.107394,0.00016438,2]
[391340766,1760547068626,-301.107394,0.00016438,2]
[391340767,1760547068637,-301.107394,0.00016438,2]
[391340768,1760547068647,-301.107394,0.00016438,2]
[391340769,1760547068657,-301.107394,0.00016438,2]
[391340770,1760547068667,-301.107394,0.00016438,2]
[391340771,1760547068677,-301.107394,0.00016438,2]
[391340772,1760547068812,-301.107394,0.00016438,2]
[391340773,1760547068823,-301.107394,0.00016438,2]
[391340774,1760547068833,-301.107394,0.00016438,2]
[391340775,1760547068848,-301.107394,0.00016438,2]
[391340776,1760547068858,-301.107394,0.00016438,2]
[391340777,1760547068868,-301.107394,0.00016438,2]
[391340778,1760547068878,-301.107394,0.00016438,2]
[391340779,1760547068889,-301.107394,0.00016438,2]
[391340780,1760547068898,-301.107394,0.00016438,2]
[391340781,1760547068909,-301.107398,0.00016438,2]
[391340782,1760547068919,-606.862128,0.00016438,2]
[391340783,1760547068929,-606.862128,0.00016438,2]
[391340784,1760547068939,-606.862128,0.00016438,2]
[391340785,1760547068950,-606.862128,0.00016438,2]
[391340786,1760547068960,-606.862128,0.00016438,2]
[391340787,1760547068970,-606.862128,0.00016438,2]
[391340788,1760547068980,-606.862128,0.00016438,2]
[391340789,1760547068989,-606.862128,0.00016438,2]
[391340790,1760547068999,-606.862128,0.00016438,2]
[391340791,1760547069009,-606.862128,0.00016438,2]
[391340792,1760547069019,-606.862128,0.00016438,2]
[391340793,1760547069029,-606.862128,0.00016438,2]
[391340794,1760547069039,-606.862128,0.00016438,2]
[391340795,1760547069049,-606.862128,0.00016438,2]
[391340796,1760547069059,-606.862128,0.00016438,2]
[391340797,1760547069068,-606.862128,0.00016438,2]
[391340798,1760547069084,-606.862128,0.00016438,2]
[391340799,1760547069094,-606.862128,0.00016438,2]
[391340800,1760547069104,-606.862128,0.00016438,2]
[391340801,1760547069114,-606.862124,0.00016438,2]
[391340802,1760547069123,-500.0,0.00016438,2]
[391340803,1760547069135,-162.65,0.0001644,2]
[391340804,1760547069145,-162.65,0.0001644,2]
[391340805,1760547069156,-162.65,0.0001644,2]
[391340806,1760547069167,-162.65,0.0001644,2]
[391340807,1760547069178,-162.65,0.0001644,2]
[391340808,1760547069189,-162.65,0.0001644,2]
[391340809,1760547069203,-162.65,0.0001644,2]
[391340810,1760547069214,-162.65,0.0001644,2]
[391340811,1760547069225,-284.49134914,0.00016467,2]
[391340812,1760547069237,-166.68,0.0001647,2]
[391340813,1760547069249,-500.0,0.00016473,2]
[391340814,1760547069259,-500.0,0.00016473,2]
[391340815,1760547069270,-500.0,0.00016473,2]
[391340816,1760547069280,-500.0,0.00016473,2]
[391340817,1760547069294,-329.46969049,0.00016473,2]
[391340818,1760547069305,-500.0,0.00016473,2]
[391340819,1760547069316,-500.0,0.00016473,2]
[391340820,1760547069326,-500.0,0.00016473,2]
[391340821,1760547069335,-203.88957228,0.00016473,2]
[391340822,1760547069345,-500.0,0.00016473,2]
[391340823,1760547069356,-500.0,0.00016473,2]
[391340824,1760547069367,-500.40266672,0.00016473,2]
[391340825,1760547069377,-1065.03999484,0.000165,2]
[391340826,1760547069387,-1991.92250662,0.000165,2]
[391340827,1760547069398,-260.34319934,0.00016513,2]
[391340828,1760547069408,-500.0,0.00016513,2]
[391340829,1760547069418,-500.0,0.00016513,2]
[391340830,1760547069428,-515.82773554,0.00016513,2]
[391340831,1760547069438,-500.0,0.00016513,2]
[391340832,1760547069453,-300.0,0.00016515,2]
[391340833,1760547069464,-166.66,0.00016531,2]
[391340834,1760547069473,-193.19806392,0.00016536,2]
[391340835,1760547069483,-168.23823262,0.00016538,2]
[391340836,1760547069493,-500.0,0.00016538,2]
[391340837,1760547069504,-7603.24262769,0.00016596,2]
[391340838,1760547069514,-355.55362886,0.000166,2]
[391340839,1760547069524,-1065.03999484,0.000166,2]
[391340840,1760547069533,-1991.92250662,0.000166,2]
[391340841,1760547069543,-2000.0,0.00016616,2]
[391340842,1760547069553,-2000.0,0.00016616,2]
[391340843,1760547069564,-301.61292239,0.00016616,2]
[391340844,1760547069575,-2000.0,0.00016616,2]
[391340845,1760547069585,-2330.06,0.00016634,2]
[391340846,1760547069596,-433.0,0.0001666,2]
[391340847,1760547069606,-500.0,0.00016698,2]
[391340848,1760547069616,-500.0,0.000167,2]
[391340849,1760547069626,-500.0,0.000167,2]
[391340850,1760547069635,-228.51,0.00016712,2]
[391340851,1760547069644,-500.0,0.00016727,2]
[391340852,1760547069655,-587.0,0.00016752,2]
[391340853,1760547069664,-500.0,0.0001677,2]
[391340854,1760547069674,-500.0,0.00016775,2]
[391340855,1760547069683,-500.0,0.00016775,2]
[391340856,1760547069697,-500.0,0.00016775,2]
[391340857,1760547069707,-500.0,0.00016775,2]
[391340858,1760547069718,-500.0,0.00016775,2]
[391340859,1760547069728,-574.27754688,0.00016778,2]
[391340860,1760547069738,-2859.46152547,0.00016796,2]
[391340861,1760547069748,-11387.1480528,0.00016818,2]
[391340862,1760547069758,-1180.391647,0.00016818,2]
[391340863,1760547069774,-1849.4706498,0.00016818,2]
[391340864,1760547069783,-7603.24262769,0.00016823,2]
[391340865,1760547069792,-2028.5314455,0.00016857,2]
[391340866,1760547069802,-2330.06,0.00016908,2]
[391340867,1760547069814,-219.0,0.00016923,2]
[391340868,1760547069824,-1000.0,0.00016933,2]
[391340869,1760547069834,-1000.0,0.00016933,2]
[391340870,1760547069847,-4834.06182,0.00016934,2]
[391340871,1760547069857,-193.22,0.00016948,2]
[391340872,1760547069867,-298.26089446,0.00016969,2]
[391340873,1760547069876,-500.0,0.00016972,2]
[391340874,1760547069886,-1000.0,0.00016975,2]
[391340875,1760547069900,-1000.0,0.00016975,2]
[391340876,1760547069917,-1000.0,0.00016975,2]
[391340877,1760547069927,-1000.0,0.00016975,2]
[391340878,1760547069938,-1000.0,0.00016975,2]
[391340879,1760547069951,-1000.0,0.00016975,2]
[391340880,1760547069961,-1000.0,0.00016975,2]
[391340881,1760547069975,-1000.0,0.00016975,2]
[391340882,1760547069986,-348.76515838,0.00016975,2]
[391340883,1760547069996,-1000.0,0.00016975,2]
[391340884,1760547070006,-173.95251719,0.00016975,2]
[391340885,1760547070016,-1000.0,0.00016975,2]
[391340886,1760547070026,-1000.0,0.00016975,2]
[391340887,1760547070036,-660.59176876,0.00016975,2]
[391340888,1760547070046,-1000.0,0.00016975,2]
[391340889,1760547070056,-591.79461107,0.00016975,2]
[391340890,1760547070066,-1000.0,0.00016975,2]
[391340891,1760547070077,-1000.0,0.00016975,2]
[391340892,1760547070087,-1000.0,0.00016975,2]
[391340893,1760547070096,-1000.0,0.00016975,2]
[391340894,1760547070106,-460.84617684,0.00016984,2]
[391340895,1760547070115,-300.0,0.00016999,2]
[391340896,1760547070125,-305.31126787,0.00016999,2]
[391340897,1760547070135,-300.0,0.00016999,2]
[391340898,1760547070145,-300.0,0.00016999,2]
[391340899,1760547070155,-300.0,0.00016999,2]
[391340900,1760547070165,-300.0,0.00016999,2]
[391340901,1760547070179,-300.0,0.00016999,2]
[391340902,1760547070189,-300.0,0.00016999,2]
[391340903,1760547070214,-300.0,0.00016999,2]
[391340904,1760547070227,-300.0,0.00016999,2]
[391340905,1760547070237,-300.0,0.00016999,2]
[391340906,1760547070246,-300.0,0.00016999,2]
[391340907,1760547070255,-300.0,0.00016999,2]
[391340908,1760547070265,-120337.87002707,0.00017,2]
[391340909,1760547070275,-17003.89845312,0.00017,2]
[391340910,1760547070284,-475.49624517,0.00017,7]
[391340911,1760547070293,-7550.0,0.00017,2]
[391340912,1760547070302,-160.0,0.00017,7]
[391340913,1760547070311,-6591.42736509,0.00017,2]
[391340914,1760547070321,-72824.33890479,0.00017,2]
[391340915,1760547070331,-1580.77729383,0.00017,2]
[391340916,1760547070340,-9923.08639785,0.00017,2]
[391340917,1760547070349,-6946.1604785,0.00017,2]
[391340918,1760547070360,-250.0,0.00017,2]
[391340919,1760547070370,-1000.0,0.00017021,2]
[391340920,1760547070379,-1000.0,0.00017021,2]
[391340921,1760547070388,-1000.0,0.00017021,2]
[391340922,1760547070398,-743.93694154,0.00017021,2]
[391340923,1760547070407,-1000.0,0.00017021,2]
[391340924,1760547070416,-1000.0,0.00017021,2]
[391340925,1760547070426,-1000.0,0.00017021,2]
[391340926,1760547070443,-1000.0,0.00017021,2]
[391340927,1760547070453,-1140.81948005,0.00017021,2]
[391340928,1760547070463,-180.0,0.00017053,2]
[391340929,1760547070472,-1000.0,0.0001706,2]
[391340930,1760547070482,-1000.0,0.0001706,2]
[391340931,1760547070493,-562.22531569,0.0001706,2]
[391340932,1760547070502,-307.1992538,0.00017085,2]
[391340933,1760547070512,-284.0,0.0001711,2]
[391340934,1760547070522,-161.7355971,0.00017127,2]
[391340935,1760547070532,-2500.0,0.00017164,2]
[391340936,1760547070543,-2500.0,0.00017164,2]
[391340937,1760547070552,-2500.0,0.00017164,2]
[391340938,1760547070561,-2330.06,0.00017182,2]
[391340939,1760547070570,-9923.08639785,0.000172,2]
[391340940,1760547070579,-6946.1604785,0.000172,2]
[391340941,1760547070588,-1600.0,0.00017219,2]
[391340942,1760547070597,-2540.8161686,0.00017242,2]
[391340943,1760547070606,-263.3809772,0.00017242,2]
[391340944,1760547070616,-412.6726823,0.00017242,2]
[391340945,1760547070625,-500.0,0.00017246,2]
[391340946,1760547070635,-265.39938706,0.00017248,2]
[391340947,1760547070643,-172.16017549,0.00017248,2]
[391340948,1760547070653,-301.40032454,0.00017269,2]
[391340949,1760547070662,-1000.0,0.00017275,2]
[391340950,1760547070672,-452.6265463,0.00017286,2]
[391340951,1760547070681,-9923.08639785,0.000173,2]
[391340952,1760547070691,-6946.1604785,0.000173,2]
[391340953,1760547070702,-1000.0,0.00017318,2]
[391340954,1760547070711,-1000.0,0.00017323,2]
[391340955,1760547070720,-1000.0,0.00017323,2]
[391340956,1760547070729,-1000.0,0.00017323,2]
[391340957,1760547070738,-1000.0,0.00017323,2]
[391340958,1760547070747,-1000.0,0.00017323,2]
[391340959,1760547070757,-31305.98039022,0.00017359,2]
[391340960,1760547070771,-2330.06,0.00017456,2]
[391340961,1760547070780,-1500.0,0.00017481,2]
[391340962,1760547070789,-1500.0,0.00017481,2]
[391340963,1760547070798,-1000.0,0.00017486,2]
[391340964,1760547070807,-20000.0,0.000175,2]
[391340965,1760547070816,-9923.08639785,0.000175,2]
[391340966,1760547070826,-6946.1604785,0.000175,2]
[391340967,1760547070835,-500.0,0.0001752,2]
[391340968,1760547070848,-1500.0,0.00017523,2]
[391340969,1760547070857,-1500.0,0.00017523,2]
[391340970,1760547070866,-1500.0,0.00017523,2]
[391340971,1760547070876,-1500.0,0.00017523,2]
[391340972,1760547070886,-1500.0,0.00017523,2]
[391340973,1760547070895,-1001.05738424,0.00017523,2]
[391340974,1760547070903,-1500.0,0.00017523,2]
[391340975,1760547070913,-1500.0,0.00017523,2]
[391340976,1760547070922,-1500.0,0.00017523,2]
[391340977,1760547070931,-1500.0,0.00017523,2]
[391340978,1760547070940,-1624.85587665,0.00017523,2]
[391340979,1760547070954,-1500.0,0.00017523,2]
[391340980,1760547070964,-170.67445687,0.00017523,2]
[391340981,1760547070974,-1500.0,0.00017523,2]
[391340982,1760547070983,-1500.0,0.00017523,2]
[391340983,1760547070992,-1451.24017531,0.00017523,2]
[391340984,1760547071002,-150.0,0.00017533,2]
[391340985,1760547071012,-1000.0,0.00017534,2]
[391340986,1760547071021,-346.92554585,0.00017568,2]
[391340987,1760547071031,-1500.0,0.00017568,2]
[391340988,1760547071041,-1500.0,0.00017568,2]
[391340989,1760547071051,-501.65863554,0.00017568,2]
[391340990,1760547071060,-1500.0,0.00017568,2]
[391340991,1760547071070,-1207.68608828,0.00017568,2]
[391340992,1760547071080,-1500.0,0.00017568,2]
[391340993,1760547071090,-1500.0,0.00017568,2]
[391340994,1760547071100,-720.17565558,0.00017569,2]
[391340995,1760547071110,-1500.0,0.00017608,2]
[391340996,1760547071120,-1500.0,0.00017608,2]
[391340997,1760547071130,-9923.08639785,0.000177,2]
[391340998,1760547071141,-3000.0,0.00017712,2]
[391340999,1760547071150,-3000.0,0.00017712,2]
[391341000,1760547071160,-3000.0,0.00017712,2]
[391341001,1760547071170,-167.29,0.00017716,2]
[391341002,1760547071180,-2330.06,0.0001773,2]
[391341003,1760547071190,-500.0,0.00017794,2]
[391341004,1760547071203,-4025.35814365,0.00017808,9]
[391341005,1760547071212,-1500.0,0.00017823,2]
[391341006,1760547071222,-227.66555442,0.00017832,4]
[391341007,1760547071232,-1500.0,0.00017866,2]
[391341008,1760547071242,-1500.0,0.00017871,2]
[391341009,1760547071252,-1500.0,0.00017871,2]
[391341010,1760547071263,-1500.0,0.00017871,2]
[391341011,1760547071272,-1500.0,0.00017871,2]
[391341012,1760547071283,-1500.0,0.00017871,2]
[391341013,1760547071292,-218.40957322,0.00017899,2]
[391341014,1760547071302,-49473.34779897,0.000179,2]
[391341015,1760547071311,-618.06372879,0.000179,2]
[391341016,1760547071321,-9923.08639785,0.000179,2]
[391341017,1760547071331,-193.22,0.00017959,2]
[391341018,1760547071341,-736.0,0.00017965,2]
[391341019,1760547071351,-161.7355971,0.00017984,2]
[391341020,1760547071360,-749.0,0.0001799,2]
[391341021,1760547071370,-2049.0,0.0001799,2]
[391341022,1760547071380,-3407.0,0.0001799,2]
[391341023,1760547071391,-1267.0,0.0001799,2]
[391341024,1760547071402,-604.0,0.0001799,2]
[391341025,1760547071412,-1309.0,0.0001799,2]
[391341026,1760547071422,-1588.0,0.0001799,2]
[391341027,1760547071432,-571.0,0.0001799,2]
[391341028,1760547071442,-816.0,0.0001799,2]
[391341029,1760547071455,-1583.0,0.0001799,2]
[391341030,1760547071465,-556.0,0.0001799,2]
[391341031,1760547071475,-1438.945,0.0001799,2]
[391341032,1760547071486,-4014.0,0.0001799,2]
[391341033,1760547071496,-150.0,0.00017998,2]
[391341034,1760547071506,-150.0,0.00017998,2]
[391341035,1760547071516,-150.0,0.00017998,2]
[391341036,1760547071526,-300.0,0.00017999,2]
[391341037,1760547071536,-300.0,0.00017999,2]
[391341038,1760547071547,-300.0,0.00017999,2]
[391341039,1760547071556,-300.0,0.00017999,2]
[391341040,1760547071566,-300.0,0.00017999,2]
[391341041,1760547071579,-300.0,0.00017999,2]
[391341042,1760547071589,-300.0,0.00017999,2]
[391341043,1760547071598,-300.0,0.00017999,2]
[391341044,1760547071608,-300.0,0.00017999,2]
[391341045,1760547071618,-300.0,0.00017999,2]
[391341046,1760547071627,-302.85637029,0.00017999,2]
[391341047,1760547071637,-104277.99456253,0.00018,2]
[391341048,1760547071647,-162.0,0.00018,2]
[391341049,1760547071657,-247462.99713974,0.00018,2]
[391341050,1760547071668,-28360.20053776,0.00018,2]
[391341051,1760547071677,-1175.62209345,0.00018,2]
[391341052,1760547071687,-500.0,0.00018,2]
[391341053,1760547071698,-9923.08639785,0.00018,2]
[391341054,1760547071707,-174.90159122,0.00018,2]
[391341055,1760547071716,-1019.9382776,0.00018,2]
[391341056,1760547071728,-10044.69474436,0.00018,2]
[391341057,1760547071738,-1201.77574065,0.00018,2]
[391341058,1760547071747,-10044.69474436,0.00018,2]
[391341059,1760547071757,-411.76212263,0.00018,2]
[391341060,1760547071772,-681.31341053,0.00018,2]
[391341061,1760547071781,-198.09186119,0.00018,2]
[391341062,1760547071791,-24685.16437476,0.00018,2]
[391341063,1760547071801,-200.0,0.00018,2]
[391341064,1760547071811,-2330.06,0.00018004,2]
[391341065,1760547071821,-2000.0,0.00018028,2]
[391341066,1760547071830,-2000.0,0.00018028,2]
[391341067,1760547071842,-500.0,0.00018068,2]
[391341068,1760547071852,-2000.0,0.00018071,2]
[391341069,1760547071862,-1153.59479049,0.00018071,2]
[391341070,1760547071872,-2000.0,0.00018071,2]
[391341071,1760547071882,-2000.0,0.00018071,2]
[391341072,1760547071893,-1280.89544369,0.00018071,2]
[391341073,1760547071904,-1343.80181479,0.00018071,2]
[391341074,1760547071914,-2000.0,0.00018071,2]
[391341075,1760547071925,-1539.56731829,0.00018071,2]
[391341076,1760547071935,-1425.27029124,0.00018071,2]
[391341077,1760547073591,-143.34805477,0.00018071,2]
[391341078,1760547073601,-364.29764002,0.00018071,2]
[391341079,1760547073684,-151.0,0.0001488,2]
[391341080,1760547073704,-265.68702,0.0001488,2]
[391341081,1760547073724,-151.0,0.0001488,2]
[391341082,1760547073744,-151.0,0.0001488,2]
[391341083,1760547073761,-1635.70235998,0.00018071,2]
[391341084,1760547073782,-2000.0,0.00018071,2]
[391341085,1760547073802,-1695.40112978,0.00018071,2]
[391341086,1760547073826,-1000.0,0.00018082,2]
[391341087,1760547073845,-460.84617684,0.00018087,2]
[391341088,1760547073864,-1757.65154816,0.000181,2]
[391341089,1760547073886,-694.702162,0.00018116,2]
[391341090,1760547073904,-2000.0,0.00018116,2]
[391341091,1760547073924,-1301.06857011,0.00018116,2]
[391341092,1760547073937,-2000.0,0.00018116,2]
[391341093,1760547073958,-2000.0,0.00018116,2]
[391341094,1760547073972,-284.49134914,0.00018153,2]
[391341095,1760547074010,-2000.0,0.00018156,2]
[391341096,1760547074029,-2000.0,0.00018156,2]
[391341097,1760547074047,-1019.9382776,0.000182,2]
[391341098,1760547074066,-174.90159122,0.000182,2]
[391341099,1760547074084,-9520.08821654,0.000182,2]
[391341100,1760547075401,-151.0,0.0001488,2]
[391341101,1760547075415,-151.0,0.0001488,2]
[391341102,1760547075430,-265.68702,0.0001488,2]
[391341103,1760547075445,-151.0,0.0001488,2]
[391341104,1760547075460,-151.0,0.0001488,2]
[391341105,1760547075474,-249.7974596,0.0001488,2]
[391341106,1760547075519,-15.8895604,0.0001488,2]
[391341107,1760547075533,-151.0,0.0001488,2]
[391341108,1760547075548,-390.81901,0.0001488,2]
[391341109,1760547075562,-25.6330344,0.0001488,2]
[391341110,1760547075635,-125.3669656,0.0001488,2]
[391341111,1760547075649,-151.0,0.0001488,2]
[391341112,1760547075663,-151.0,0.0001488,2]
[391341113,1760547075678,-265.68702,0.0001488,2]
[391341114,1760547075693,-390.81901,0.0001488,2]
[391341115,1760547075710,-151.0,0.0001488,2]
[391341116,1760547075724,-151.0,0.0001488,2]
[391341117,1760547075739,-151.0,0.0001488,2]
[391341118,1760547075755,-265.68702,0.0001488,2]
[391341119,1760547075773,-390.81901,0.0001488,2]
[391341120,1760547075788,-152.577578,0.0001488,2]
[391341121,1760547075803,-265.394066,0.0001488,2]
[391341122,1760547075820,-6288.924322,0.0001488,2]
[391341123,1760547075834,-251.38036235,0.0001488,2]
[391341124,1760547076978,-14.30665765,0.0001488,2]
[391341125,1760547076988,-390.81901,0.0001488,2]
[391341126,1760547076998,-6288.924322,0.0001488,2]
[391341127,1760547077008,-151.0,0.0001488,2]
[391341128,1760547077018,-265.687015,0.0001488,2]
[391341129,1760547077027,-151.0,0.0001488,2]
[391341130,1760547077037,-390.81901,0.0001488,2]
[391341131,1760547077047,-6288.924322,0.0001488,2]
[391341132,1760547077056,-151.0,0.0001488,2]
[391341133,1760547077066,-390.81901,0.0001488,2]
[391341134,1760547077076,-151.0,0.0001488,2]
[391341135,1760547077085,-6288.924322,0.0001488,2]
[391341136,1760547077095,-151.0,0.0001488,2]
[391341137,1760547077105,-390.81901,0.0001488,2]
[391341138,1760547077116,-151.0,0.0001488,2]
[391341139,1760547077126,-6288.924322,0.0001488,2]
[391341140,1760547077136,-390.81901,0.0001488,2]
[391341141,1760547077146,-151.0,0.0001488,2]
[391341142,1760547077156,-6288.924322,0.0001488,2]
[391341143,1760547077166,-390.81901,0.0001488,2]
[391341144,1760547077175,-151.0,0.0001488,2]
[391341145,1760547077185,-6288.924322,0.0001488,2]
[391341146,1760547077195,-390.81901,0.0001488,2]
[391341147,1760547077209,-151.0,0.0001488,2]
[391341148,1760547077219,-6288.924322,0.0001488,2]
[391341149,1760547077229,-390.81901,0.0001488,2]
[391341150,1760547077239,-151.0,0.0001488,2]
[391341151,1760547077248,-6288.924322,0.0001488,2]
[391341152,1760547077258,-390.81901,0.0001488,2]
[391341153,1760547077267,-151.0,0.0001488,2]
[391341154,1760547077277,-6288.924322,0.0001488,2]
[391341155,1760547077287,-390.81901,0.0001488,2]
[391341156,1760547077297,-151.0,0.0001488,2]
[391341157,1760547077306,-6288.924322,0.0001488,2]
[391341158,1760547077315,-390.81901,0.0001488,2]
[391341159,1760547077324,-6288.924322,0.0001488,2]
[391341160,1760547077334,-390.81901,0.0001488,2]
[391341161,1760547077344,-6288.924322,0.0001488,2]
[391341162,1760547077354,-390.81901,0.0001488,2]
[391341163,1760547077363,-6288.924322,0.0001488,2]
[391341164,1760547077373,-390.81901,0.0001488,2]
[391341165,1760547077382,-6288.924322,0.0001488,2]
[391341166,1760547077392,-390.81901,0.0001488,2]
[391341167,1760547077402,-150.0,0.00014955,2]
[391341168,1760547077411,-339.71249023,0.00014998,2]
[391341169,1760547077421,-524.60652782,0.000182,2]
[391341170,1760547077431,-1201.77574065,0.000182,2]
[391341171,1760547077440,-10044.69474436,0.000182,2]
[391341172,1760547077453,-411.76212263,0.000182,2]
[391341173,1760547077462,-681.31341053,0.000182,2]
[391341174,1760547077472,-198.09186119,0.000182,2]
[391341175,1760547077482,-2688.258172,0.00018247,2]
[391341176,1760547077492,-396.94304608,0.00018247,2]
[391341177,1760547077504,-476.64000015,0.00018247,2]
[391341178,1760547077520,-1814.67512577,0.00018247,2]
[391341179,1760547077530,-2688.258172,0.00018247,2]
[391341180,1760547077541,-2688.258172,0.00018247,2]
[391341181,1760547077551,-1938.39351572,0.00018247,2]
[391341182,1760547077576,-655.8124673,0.0001488,2]
[391341183,1760547077588,-2073.17015385,0.0001488,2]
[391341184,1760547314936,162.03,0.00027397,120]
[391341213,1760548231848,-645.87,0.00013699,2]
[391341215,1760548231860,-740.42505491,0.00014815,2]
[391341217,1760548231871,-248.2797141,0.00014821,2]
[391341219,1760548231882,-29761.17862385,0.00014828,2]
[391341221,1760548231894,-740.42505491,0.0001483,2]
[391341223,1760548231906,-16953.41809799,0.00014835,2]